[Event "Championnat d'Europe Rapide"]
[Date "2024.12.07"]
[White "Radeva, Viktoria"]
[Black "Papasimakopoulos, Alexandros"]
[WhiteElo "2275"]
[BlackElo "2379"]
[Round "6.53"]
[Result "0-1"]
[TimeControl "900+10"]

1. e4 {[%clk 00:15:19]} e6 {[%emt 00:00:01] [%clk 00:15:19]} 2. d4 {[%emt
00:00:03] [%clk 00:15:26]} d5 {[%emt 00:00:01] [%clk 00:15:29]} 3. e5 {[%clk
00:15:35]} a6 {[%emt 00:00:02] [%clk 00:15:37]} 4. Nf3 {[%emt 00:00:13] [%clk
00:15:31]} Bd7 {[%emt 00:00:02] [%clk 00:15:45]} 5. Be2 {[%emt 00:00:09] [%clk
00:15:32]} Bb5 {[%emt 00:00:01] [%clk 00:15:54]} 6. O-O {[%emt 00:00:07] [%clk
00:15:35]} Bxe2 {[%emt 00:00:02] [%clk 00:16:02]} 7. Qxe2 {[%clk 00:15:44]} c5
{[%clk 00:16:12]} 8. c3 {[%emt 00:00:14] [%clk 00:15:41]} Nc6 {[%emt 00:00:02]
[%clk 00:16:20]} 9. dxc5 {[%emt 00:00:22] [%clk 00:15:29]} Bxc5 {[%emt 00:00:02]
[%clk 00:16:28]} 10. Nbd2 {[%emt 00:00:09] [%clk 00:15:29]} Nge7 {[%emt
00:00:05] [%clk 00:16:33]} 11. Nb3 {[%emt 00:01:08] [%clk 00:14:31]} Bb6 {[%emt
00:00:01] [%clk 00:16:42]} 12. Be3 {[%emt 00:00:17] [%clk 00:14:24]} O-O {[%emt
00:00:02] [%clk 00:16:50]} 13. Bxb6 {[%emt 00:00:24] [%clk 00:14:10]} Qxb6
{[%emt 00:00:02] [%clk 00:16:59]} 14. Nfd4 {[%emt 00:00:08] [%clk 00:14:12]} a5
{[%emt 00:00:03] [%clk 00:17:06]} 15. a4 {[%emt 00:00:28] [%clk 00:13:53]} Nxd4
{[%emt 00:00:19] [%clk 00:16:57]} 16. Nxd4 {[%emt 00:00:02] [%clk 00:14:01]} Nc6
{[%emt 00:00:02] [%clk 00:17:05]} 17. Nb5 {[%emt 00:00:24] [%clk 00:13:47]} Rfd8
{[%emt 00:00:11] [%clk 00:17:04]} 18. Rad1 {[%emt 00:00:16] [%clk 00:13:41]}
Rac8 {[%emt 00:00:03] [%clk 00:17:12]} 19. g3 {[%emt 00:01:41] [%clk 00:12:09]}
Rd7 {[%emt 00:00:23] [%clk 00:16:59]} 20. Kg2 {[%emt 00:00:36] [%clk 00:11:43]}
Ne7 {[%emt 00:00:20] [%clk 00:16:49]} 21. h4 {[%emt 00:02:13] [%clk 00:09:40]}
Rc4 {[%emt 00:00:02] [%clk 00:16:58]} 22. Rd4 {[%emt 00:00:07] [%clk 00:09:42]}
Rxd4 {[%emt 00:00:05] [%clk 00:17:03]} 23. cxd4 {[%emt 00:00:10] [%clk
00:09:42]} Nc6 {[%emt 00:00:11] [%clk 00:17:03]} 24. Rc1 {[%emt 00:00:05] [%clk
00:09:46]} Rd8 {[%emt 00:00:08] [%clk 00:17:05]} 25. Qd2 {[%emt 00:00:16] [%clk
00:09:40]} h6 {[%emt 00:00:08] [%clk 00:17:07]} 26. Qc3 {[%emt 00:00:21] [%clk
00:09:29]} h5 {[%emt 00:01:01] [%clk 00:16:16]} 27. Qf3 {[%emt 00:00:59] [%clk
00:08:40]} g6 {[%emt 00:00:20] [%clk 00:16:06]} 28. g4 {[%emt 00:00:10] [%clk
00:08:40]} hxg4 {[%emt 00:00:33] [%clk 00:15:44]} 29. Qxg4 {[%clk 00:08:49]} Kf8
{[%emt 00:00:58] [%clk 00:14:56]} 30. Qg5 {[%emt 00:00:20] [%clk 00:08:39]} Rd7
{[%emt 00:00:17] [%clk 00:14:49]} 31. h5 {[%emt 00:00:33] [%clk 00:08:16]} gxh5
{[%emt 00:00:49] [%clk 00:14:11]} 32. Qh6+ {[%emt 00:00:31] [%clk 00:07:55]} Ke8
{[%emt 00:00:37] [%clk 00:13:43]} 33. Qh8+ {[%emt 00:00:07] [%clk 00:07:58]} Ke7
{[%emt 00:00:02] [%clk 00:13:52]} 34. Qf6+ {[%emt 00:00:08] [%clk 00:07:59]} Ke8
{[%emt 00:00:16] [%clk 00:13:47]} 35. Qh8+ {[%emt 00:05:32] [%clk 00:02:37]} Ke7
{[%emt 00:00:02] [%clk 00:13:54]} 36. Kh1 {[%emt 00:00:55] [%clk 00:01:51]} Qd8
{[%emt 00:00:59] [%clk 00:13:06]} 37. Qf6+ {[%emt 00:00:02] [%clk 00:02:00]} Ke8
{[%emt 00:00:13] [%clk 00:13:02]} 38. Qh8+ {[%emt 00:00:10] [%clk 00:02:00]} Ke7
{[%emt 00:00:01] [%clk 00:13:11]} 39. Qxh5 {[%emt 00:00:02] [%clk 00:02:08]} Qf8
{[%emt 00:00:24] [%clk 00:12:57]} 40. Nd6 {[%emt 00:00:27] [%clk 00:01:52]} Rxd6
{[%emt 00:00:11] [%clk 00:12:55]} 41. exd6+ {[%emt 00:00:01] [%clk 00:02:01]}
Kxd6 {[%emt 00:00:02] [%clk 00:13:04]} 42. Qh4 {[%emt 00:00:15] [%clk 00:01:55]}
Qg7 {[%emt 00:00:05] [%clk 00:13:09]} 43. Qf4+ {[%emt 00:00:25] [%clk 00:01:40]}
Kd7 {[%emt 00:00:01] [%clk 00:13:18]} 44. Rg1 {[%emt 00:00:08] [%clk 00:01:42]}
Qh8+ {[%emt 00:00:02] [%clk 00:13:27]} 45. Kg2 {[%emt 00:00:08] [%clk 00:01:43]}
Qh7 {[%emt 00:00:56] [%clk 00:12:41]} 46. Rh1 {[%emt 00:00:09] [%clk 00:01:44]}
Qg6+ {[%emt 00:00:02] [%clk 00:12:49]} 47. Kf1 {[%emt 00:00:05] [%clk 00:01:48]}
Qd3+ {[%emt 00:00:12] [%clk 00:12:48]} 48. Kg1 {[%emt 00:00:17] [%clk 00:01:42]}
Nxd4 {[%emt 00:00:16] [%clk 00:12:42]} 49. Qxf7+ {[%emt 00:00:03] [%clk
00:01:49]} Kc6 {[%emt 00:00:03] [%clk 00:12:48]} 50. Kh2 {[%emt 00:00:18] [%clk
00:01:40]} Qd2 {[%emt 00:00:22] [%clk 00:12:36]} 51. Qe8+ {[%emt 00:00:58] [%clk
00:00:53]} Kb6 {[%emt 00:01:22] [%clk 00:11:24]} 52. Qd8+ {[%emt 00:00:03] [%clk
00:01:01]} Ka7 {[%emt 00:00:01] [%clk 00:11:32]} 53. Kg2 {[%emt 00:00:11] [%clk
00:01:00]} Nc6 {[%emt 00:00:58] [%clk 00:10:44]} 54. Qf6 {[%emt 00:00:03] [%clk
00:01:07]} e5 {[%emt 00:00:04] [%clk 00:10:50]} 55. Rh7 {[%emt 00:00:09] [%clk
00:01:08]} Ka6 {[%emt 00:00:24] [%clk 00:10:37]} 56. Qg7 {[%emt 00:00:40] [%clk
00:00:37]} Qxb2 {[%emt 00:00:15] [%clk 00:10:32]} 57. Qg8 {[%emt 00:00:08] [%clk
00:00:39]} Qd4 {[%emt 00:01:18] [%clk 00:09:24]} 58. Qa8+ {[%emt 00:00:20] [%clk
00:00:30]} Qa7 {[%emt 00:00:05] [%clk 00:09:28]} 59. Qc8 {[%emt 00:00:21] [%clk
00:00:18]} Kb6 {[%emt 00:00:43] [%clk 00:08:56]} 60. Qd7 {[%emt 00:00:12] [%clk
00:00:16]} d4 {[%emt 00:00:42] [%clk 00:08:24]} 61. Qd5 {[%emt 00:00:10] [%clk
00:00:16]} Qa6 {[%emt 00:00:35] [%clk 00:08:00]} 62. Rh6 {[%emt 00:00:03] [%clk
00:00:23]} Ka7 {[%emt 00:00:11] [%clk 00:07:57]} 63. Rd6 {[%emt 00:00:17] [%clk
00:00:17]} Qb6 {[%emt 00:00:22] [%clk 00:07:45]} 64. Rd7 {[%emt 00:00:11] [%clk
00:00:16]} Ka6 {[%emt 00:00:24] [%clk 00:07:31]} 65. Qc4+ {[%emt 00:00:05] [%clk
00:00:21]} Ka7 {[%emt 00:00:03] [%clk 00:07:38]} 66. Qd5 {[%emt 00:00:01] [%clk
00:00:30]} Nb4 {[%emt 00:00:18] [%clk 00:07:30]} 67. Qf7 {[%emt 00:00:24] [%clk
00:00:17]} Qc6+ {[%emt 00:00:37] [%clk 00:07:02]} 68. Kh2 {[%emt 00:00:02] [%clk
00:00:25]} d3 {[%emt 00:00:54] [%clk 00:06:19]} 69. Qe8 {[%emt 00:00:12] [%clk
00:00:23]} e4 {[%emt 00:00:26] [%clk 00:06:03]} 70. Qd8 {[%emt 00:00:07] [%clk
00:00:26]} Qc5 {[%emt 00:00:01] [%clk 00:06:12]} 71. Kg2 {[%emt 00:00:10] [%clk
00:00:25]} Nc2 {[%emt 00:01:26] [%clk 00:04:56]} 72. Rc7 {[%emt 00:00:10] [%clk
00:00:26]} Qb6 {[%emt 00:00:51] [%clk 00:04:15]} 73. Qd7 {[%emt 00:00:21] [%clk
00:00:14]} Ne1+ {[%emt 00:01:06] [%clk 00:03:19]} 74. Kf1 {[%emt 00:00:06] [%clk
00:00:18]} Nf3 {[%emt 00:00:14] [%clk 00:03:15]} 75. Rc8 {[%emt 00:00:14] [%clk
00:00:14]} Qb1+ {[%emt 00:00:28] [%clk 00:02:57]} 76. Kg2 {[%emt 00:00:09] [%clk
00:00:16]} Qg1+ {[%emt 00:00:01] [%clk 00:03:04]} 77. Kh3 {[%emt 00:00:08] [%clk
00:00:18]} Qh1+ {[%emt 00:00:02] [%clk 00:03:13]} 78. Kg4 {[%emt 00:00:05] [%clk
00:00:24]} Ne5+ {[%emt 00:00:04] [%clk 00:03:21]} 0-1

[Site "Europe Echecs"]

[Event "Championnat d'Europe Rapide"]
[Date "2024.12.07"]
[White "Galuszka, Tomasz"]
[Black "Arnaudov, G. Petar"]
[WhiteElo "2174"]
[BlackElo "2401"]
[Round "6.54"]
[Result "1/2-1/2"]
[TimeControl "900+10"]

1. e4 {[%emt 00:00:20] [%clk 00:14:59]} g6 {[%emt 00:00:05] [%clk 00:15:16]} 2.
d4 {[%emt 00:00:03] [%clk 00:15:06]} Bg7 {[%emt 00:00:02] [%clk 00:15:25]} 3.
Nc3 {[%emt 00:00:02] [%clk 00:15:13]} c6 {[%emt 00:00:04] [%clk 00:15:32]} 4.
Nf3 {[%emt 00:01:56] [%clk 00:13:26]} d5 {[%emt 00:00:01] [%clk 00:15:41]} 5. h3
{[%emt 00:00:03] [%clk 00:13:33]} dxe4 {[%emt 00:00:02] [%clk 00:15:49]} 6. Nxe4
{[%emt 00:00:02] [%clk 00:13:41]} Nf6 {[%emt 00:00:01] [%clk 00:15:58]} 7. Ng3
{[%emt 00:00:08] [%clk 00:13:43]} O-O {[%emt 00:00:05] [%clk 00:16:03]} 8. Be2
{[%emt 00:00:02] [%clk 00:13:51]} c5 {[%emt 00:00:17] [%clk 00:15:56]} 9. O-O
{[%emt 00:00:14] [%clk 00:13:46]} cxd4 {[%emt 00:00:04] [%clk 00:16:03]} 10.
Qxd4 {[%emt 00:00:03] [%clk 00:13:52]} Nc6 {[%emt 00:00:04] [%clk 00:16:10]} 11.
Qxd8 {[%emt 00:00:10] [%clk 00:13:52]} Rxd8 {[%emt 00:00:02] [%clk 00:16:17]}
12. c3 {[%emt 00:00:04] [%clk 00:13:59]} b6 {[%emt 00:00:23] [%clk 00:16:05]}
13. Bd2 {[%emt 00:00:30] [%clk 00:13:38]} Be6 {[%emt 00:00:35] [%clk 00:15:40]}
14. Rfd1 {[%emt 00:00:09] [%clk 00:13:39]} h6 {[%emt 00:00:16] [%clk 00:15:34]}
15. Be1 {[%emt 00:00:12] [%clk 00:13:38]} Nd7 {[%emt 00:00:29] [%clk 00:15:14]}
16. Ne4 {[%emt 00:00:58] [%clk 00:12:50]} f5 {[%emt 00:00:09] [%clk 00:15:15]}
17. Ned2 {[%emt 00:00:02] [%clk 00:12:57]} Nc5 {[%emt 00:00:20] [%clk 00:15:06]}
18. Nc4 {[%emt 00:01:31] [%clk 00:11:36]} Bf7 {[%emt 00:00:28] [%clk 00:14:49]}
19. Rac1 {[%emt 00:03:15] [%clk 00:08:30]} Na4 {[%emt 00:03:03] [%clk 00:11:56]}
20. Rxd8+ {[%emt 00:00:43] [%clk 00:07:57]} Rxd8 {[%clk 00:12:00]} 21. b3 {[%emt
00:00:08] [%clk 00:08:05]} Nc5 {[%emt 00:00:16] [%clk 00:11:55]} 22. Nb2 {[%emt
00:00:55] [%clk 00:07:20]} e5 {[%emt 00:00:36] [%clk 00:11:29]} 23. Rd1 {[%emt
00:00:42] [%clk 00:06:47]} Rxd1 {[%emt 00:00:09] [%clk 00:11:30]} 24. Nxd1
{[%clk 00:06:56]} e4 {[%emt 00:00:08] [%clk 00:11:32]} 25. Nd2 {[%emt 00:00:01]
[%clk 00:07:04]} Ne5 {[%emt 00:00:06] [%clk 00:11:37]} 26. Kf1 {[%emt 00:00:48]
[%clk 00:06:27]} Ncd3 {[%emt 00:00:22] [%clk 00:11:24]} 27. f3 {[%emt 00:00:56]
[%clk 00:05:41]} Bd5 {[%emt 00:00:18] [%clk 00:11:16]} 28. c4 {[%emt 00:00:06]
[%clk 00:05:45]} exf3 {[%emt 00:00:38] [%clk 00:10:49]} 29. Nxf3 {[%emt
00:00:14] [%clk 00:05:40]} Bxf3 {[%emt 00:00:11] [%clk 00:10:48]} 30. Bxf3
{[%emt 00:00:15] [%clk 00:05:34]} Nxf3 {[%emt 00:00:45] [%clk 00:10:14]} 31.
gxf3 {[%emt 00:00:01] [%clk 00:05:43]} Nc1 {[%emt 00:00:36] [%clk 00:09:48]} 32.
Nc3 {[%emt 00:00:21] [%clk 00:05:32]} Bxc3 {[%emt 00:00:01] [%clk 00:09:57]} 33.
Bxc3 {[%emt 00:00:01] [%clk 00:05:41]} Nxa2 {[%emt 00:00:02] [%clk 00:10:05]}
34. Bd2 {[%clk 00:05:50]} g5 {[%emt 00:00:29] [%clk 00:09:47]} 35. Ke2 {[%emt
00:00:28] [%clk 00:05:31]} a5 {[%emt 00:00:33] [%clk 00:09:24]} 36. Kd3 {[%emt
00:00:26] [%clk 00:05:15]} Kf7 {[%emt 00:00:07] [%clk 00:09:28]} 37. Be3 {[%emt
00:00:14] [%clk 00:05:11]} Nb4+ {[%emt 00:00:16] [%clk 00:09:21]} 38. Kc3 {[%emt
00:00:02] [%clk 00:05:17]} Ke6 {[%emt 00:00:26] [%clk 00:09:07]} 39. Bxb6 {[%emt
00:00:01] [%clk 00:05:26]} Nc6 {[%emt 00:00:01] [%clk 00:09:16]} 40. Bc7 {[%emt
00:00:09] [%clk 00:05:27]} h5 {[%emt 00:00:38] [%clk 00:08:48]} 41. Kd3 {[%emt
00:00:08] [%clk 00:05:29]} Kd7 {[%emt 00:00:11] [%clk 00:08:47]} 42. Bg3 {[%emt
00:00:19] [%clk 00:05:20]} Ke6 {[%emt 00:00:25] [%clk 00:08:32]} 43. Bc7 {[%emt
00:00:02] [%clk 00:05:28]} Kd7 {[%emt 00:03:42] [%clk 00:05:01]} 44. Bg3 {[%emt
00:00:03] [%clk 00:05:35]} 1/2-1/2

[Site "Europe Echecs"]

[Event "Championnat d'Europe Rapide"]
[Date "2024.12.08"]
[White "Van Foreest, Jorden"]
[Black "Boyer, Mahel"]
[WhiteElo "2677"]
[BlackElo "2526"]
[Round "7.1"]
[Result "1-0"]
[TimeControl "900+10"]

1. e4 {[%emt 00:02:02] [%clk 00:13:18]} d6 {[%emt 00:01:17] [%clk 00:14:03]} 2.
d4 {[%emt 00:00:04] [%clk 00:13:24]} Nf6 {[%emt 00:00:02] [%clk 00:14:11]} 3.
Nc3 {[%emt 00:00:05] [%clk 00:13:28]} g6 {[%emt 00:00:02] [%clk 00:14:19]} 4.
Be3 {[%emt 00:00:30] [%clk 00:13:07]} Bg7 {[%emt 00:00:02] [%clk 00:14:27]} 5.
Qd2 {[%emt 00:00:22] [%clk 00:12:55]} c6 {[%emt 00:00:02] [%clk 00:14:36]} 6. a4
{[%emt 00:00:43] [%clk 00:12:23]} O-O {[%emt 00:00:40] [%clk 00:14:06]} 7. f3
{[%emt 00:00:07] [%clk 00:12:25]} Nbd7 {[%emt 00:01:04] [%clk 00:13:12]} 8. Nge2
{[%emt 00:00:13] [%clk 00:12:22]} e5 {[%emt 00:00:06] [%clk 00:13:16]} 9. O-O-O
{[%emt 00:01:32] [%clk 00:11:00]} Qa5 {[%emt 00:00:25] [%clk 00:13:01]} 10. Kb1
{[%emt 00:00:03] [%clk 00:11:08]} b5 {[%emt 00:00:11] [%clk 00:13:00]} 11. axb5
{[%emt 00:00:15] [%clk 00:11:03]} cxb5 {[%emt 00:00:04] [%clk 00:13:06]} 12. Nd5
{[%emt 00:00:59] [%clk 00:10:13]} Qxd2 {[%emt 00:00:50] [%clk 00:12:26]} 13.
Nxf6+ {[%emt 00:00:02] [%clk 00:10:21]} Bxf6 {[%emt 00:00:23] [%clk 00:12:13]}
14. Rxd2 {[%emt 00:00:20] [%clk 00:10:11]} Nb6 {[%emt 00:00:02] [%clk 00:12:21]}
15. Nc3 {[%emt 00:00:32] [%clk 00:09:49]} b4 {[%emt 00:00:14] [%clk 00:12:18]}
16. Nb5 {[%emt 00:00:13] [%clk 00:09:46]} Rd8 {[%emt 00:00:08] [%clk 00:12:20]}
17. Be2 {[%emt 00:00:38] [%clk 00:09:17]} exd4 {[%emt 00:02:35] [%clk 00:09:56]}
18. Bxd4 {[%emt 00:00:21] [%clk 00:09:06]} Bg5 {[%emt 00:00:02] [%clk 00:10:05]}
19. Rdd1 {[%emt 00:00:40] [%clk 00:08:35]} Ba6 {[%emt 00:00:05] [%clk 00:10:10]}
20. Rhe1 {[%emt 00:00:01] [%clk 00:08:44]} Bxb5 {[%emt 00:02:04] [%clk
00:08:16]} 21. Bxb5 {[%emt 00:00:02] [%clk 00:08:52]} Bf4 {[%emt 00:00:04] [%clk
00:08:22]} 22. g3 {[%emt 00:00:52] [%clk 00:08:09]} Be5 {[%emt 00:00:02] [%clk
00:08:31]} 23. f4 {[%emt 00:00:07] [%clk 00:08:11]} Bg7 {[%emt 00:02:26] [%clk
00:06:15]} 24. Bxg7 {[%emt 00:00:23] [%clk 00:07:59]} Kxg7 {[%emt 00:00:03]} 25.
Rd4 {[%clk 00:08:07]} a6 {[%emt 00:00:19] [%clk 00:06:15]} 26. Bc6 {[%emt
00:01:05] [%clk 00:07:12]} Rac8 {[%emt 00:05:03] [%clk 00:01:22]} 27. Bb7 {[%emt
00:00:03] [%clk 00:07:19]} Rc4 {[%emt 00:00:02] [%clk 00:01:31]} 28. Rxc4 {[%emt
00:01:44] [%clk 00:05:45]} Nxc4 {[%emt 00:00:01] [%clk 00:01:39]} 29. Bxa6
{[%emt 00:00:02] [%clk 00:05:53]} Nd2+ {[%emt 00:00:02] [%clk 00:01:47]} 30. Kc1
{[%emt 00:00:01] [%clk 00:06:01]} Nf3 {[%emt 00:00:02] [%clk 00:01:56]} 31. Rd1
{[%emt 00:00:04] [%clk 00:06:06]} Nxh2 {[%emt 00:01:29] [%clk 00:00:37]} 32. Rd4
{[%emt 00:00:04] [%clk 00:06:12]} Ra8 {[%emt 00:00:37] [%clk 00:00:11]} 33. Rxd6
{[%emt 00:00:06] [%clk 00:06:15]} g5 {[%emt 00:00:09] [%clk 00:00:12]} 34. Kd2
{[%emt 00:02:48] [%clk 00:03:37]} gxf4 {[%emt 00:00:11] [%clk 00:00:12]} 35.
gxf4 {[%emt 00:00:01] [%clk 00:03:46]} Ng4 {[%emt 00:00:06] [%clk 00:00:16]} 36.
Be2 {[%emt 00:00:21] [%clk 00:03:34]} Nf6 {[%emt 00:00:16] [%clk 00:00:11]} 37.
Rd4 {[%emt 00:00:01] [%clk 00:03:43]} Rb8 {[%emt 00:00:10] [%clk 00:00:12]} 38.
e5 {[%clk 00:03:51]} Ng8 {[%emt 00:00:04] [%clk 00:00:17]} 39. Ke3 {[%emt
00:00:54] [%clk 00:03:07]} Ne7 {[%emt 00:00:07] [%clk 00:00:21]} 40. Ke4 {[%emt
00:00:16] [%clk 00:03:00]} Rb7 {[%emt 00:00:21] [%clk 00:00:11]} 41. f5 {[%emt
00:00:06] [%clk 00:03:03]} Kh6 {[%emt 00:00:10] [%clk 00:00:12]} 42. Bc4 {[%emt
00:00:49] [%clk 00:02:24]} Kg5 {[%emt 00:00:02] [%clk 00:00:20]} 43. Rd1 {[%emt
00:00:03] [%clk 00:02:31]} Rc7 {[%emt 00:00:19] [%clk 00:00:11]} 44. Rg1+ {[%emt
00:00:01] [%clk 00:02:40]} Kh6 {[%emt 00:00:02] [%clk 00:00:18]} 45. b3 {[%emt
00:00:11] [%clk 00:02:39]} Nc8 {[%emt 00:00:16] [%clk 00:00:13]} 46. f6 {[%emt
00:00:04] [%clk 00:02:45]} Rc5 {[%emt 00:00:12] [%clk 00:00:11]} 47. Kf4 {[%emt
00:00:06] [%clk 00:02:48]} Nb6 {[%emt 00:00:10] [%clk 00:00:11]} 48. Rh1+ {[%emt
00:00:02] [%clk 00:02:57]} Kg6 {[%emt 00:00:02] [%clk 00:00:19]} 49. Bd3# {[%emt
00:00:02] [%clk 00:03:05]} 1-0

[Site "Europe Echecs"]

[Event "Championnat d'Europe Rapide"]
[Date "2024.12.08"]
[White "Magold, Filip"]
[Black "Jobava, Baadur"]
[WhiteElo "2428"]
[BlackElo "2578"]
[Round "7.2"]
[Result "1/2-1/2"]
[TimeControl "900+10"]

1. e4 {[%emt 00:00:18] [%clk 00:15:02]} c6 {[%emt 00:00:24] [%clk 00:14:56]} 2.
d4 {[%emt 00:00:01] [%clk 00:15:10]} d5 {[%emt 00:00:02] [%clk 00:15:05]} 3. e5
{[%emt 00:00:01] [%clk 00:15:19]} Bf5 {[%emt 00:00:02] [%clk 00:15:12]} 4. Nf3
{[%emt 00:00:02] [%clk 00:15:27]} e6 {[%emt 00:00:03] [%clk 00:15:19]} 5. Be2
{[%emt 00:00:02] [%clk 00:15:36]} h6 {[%emt 00:00:06] [%clk 00:15:22]} 6. O-O
{[%emt 00:00:04] [%clk 00:15:43]} Ne7 {[%emt 00:00:01] [%clk 00:15:31]} 7. b3
{[%emt 00:00:08] [%clk 00:15:44]} Bh7 {[%emt 00:01:10] [%clk 00:14:31]} 8. c4
{[%emt 00:00:03] [%clk 00:15:51]} Ng6 {[%emt 00:00:23] [%clk 00:14:18]} 9. Nc3
{[%emt 00:00:07] [%clk 00:15:54]} Bb4 {[%emt 00:00:09] [%clk 00:14:20]} 10. Na4
{[%emt 00:00:31] [%clk 00:15:33]} O-O {[%emt 00:00:13] [%clk 00:14:17]} 11. Bd3
{[%emt 00:01:19] [%clk 00:14:24]} Nd7 {[%emt 00:00:19] [%clk 00:14:08]} 12. Qc2
{[%emt 00:00:58] [%clk 00:13:35]} Re8 {[%emt 00:01:43] [%clk 00:12:37]} 13. c5
{[%emt 00:00:11] [%clk 00:13:33]} Ba5 {[%emt 00:00:22] [%clk 00:12:24]} 14. b4
{[%emt 00:00:01] [%clk 00:13:42]} Bc7 {[%emt 00:00:11] [%clk 00:12:24]} 15. Nc3
{[%emt 00:00:23] [%clk 00:13:29]} a6 {[%emt 00:00:40] [%clk 00:11:54]} 16. a4
{[%emt 00:00:04] [%clk 00:13:34]} Ngf8 {[%emt 00:00:02] [%clk 00:12:02]} 17. Ne1
{[%emt 00:00:46] [%clk 00:12:58]} b5 {[%emt 00:01:07] [%clk 00:11:06]} 18. Bxh7+
{[%emt 00:02:12] [%clk 00:10:56]} Nxh7 {[%emt 00:00:01] [%clk 00:11:14]} 19. Nd3
{[%emt 00:00:02] [%clk 00:11:04]} Ndf8 {[%emt 00:02:15] [%clk 00:09:09]} 20. f4
{[%emt 00:03:19] [%clk 00:07:55]} Re7 {[%emt 00:01:01] [%clk 00:08:19]} 21. Be3
{[%emt 00:00:37] [%clk 00:07:28]} Qe8 {[%emt 00:00:11] [%clk 00:08:18]} 22. Ra2
{[%emt 00:00:36] [%clk 00:07:02]} Rc8 {[%emt 00:00:12] [%clk 00:08:16]} 23. axb5
{[%emt 00:00:29] [%clk 00:06:44]} axb5 {[%emt 00:00:01] [%clk 00:08:24]} 24.
Rfa1 {[%emt 00:00:03] [%clk 00:06:50]} f5 {[%emt 00:00:06] [%clk 00:08:28]} 25.
Ra6 {[%emt 00:01:01] [%clk 00:06:00]} g5 {[%emt 00:00:04] [%clk 00:08:34]} 26.
R1a3 {[%emt 00:01:09] [%clk 00:05:01]} Ng6 {[%emt 00:00:09] [%clk 00:08:34]} 27.
Qa2 {[%emt 00:00:14] [%clk 00:04:58]} Rg7 {[%emt 00:01:34] [%clk 00:07:10]} 28.
Ne2 {[%emt 00:01:34] [%clk 00:03:33]} Bd8 {[%emt 00:00:38] [%clk 00:06:43]} 29.
Ra8 {[%emt 00:00:05] [%clk 00:03:38]} Rgc7 {[%emt 00:00:11] [%clk 00:06:42]} 30.
R3a7 {[%emt 00:01:00] [%clk 00:02:48]} Ne7 {[%emt 00:04:34] [%clk 00:02:18]} 31.
Rxc7 {[%emt 00:01:23] [%clk 00:01:35]} Bxc7 {[%emt 00:00:06] [%clk 00:02:22]}
32. Ra7 {[%emt 00:00:43] [%clk 00:01:02]} Bb8 {[%emt 00:00:50] [%clk 00:01:42]}
33. Rb7 {[%emt 00:00:10] [%clk 00:01:02]} Rc7 {[%emt 00:00:01] [%clk 00:01:51]}
34. Qa8 {[%emt 00:00:04] [%clk 00:01:08]} Rxb7 {[%clk 00:02:00]} 35. Qxb7 {[%emt
00:00:02] [%clk 00:01:17]} Kf7 {[%emt 00:00:11] [%clk 00:01:59]} 36. Ne1 {[%emt
00:00:25] [%clk 00:01:01]} Qc8 {[%emt 00:00:11] [%clk 00:01:59]} 37. Qxc8 {[%emt
00:00:36] [%clk 00:00:35]} Nxc8 {[%emt 00:00:01] [%clk 00:02:07]} 38. Nf3 {[%emt
00:00:01] [%clk 00:00:44]} 1/2-1/2

[Site "Europe Echecs"]